bitfinex-derivatives/quotes_BTCF0:USTF0_20240825
["timestamp","ask_amount","ask_price","bid_price","bid_amount"]
[1724573068284,0.00023483,63849.0,63846.0,0.078272]
[1724573068574,0.00023483,63849.0,63848.0,0.07827]
[1724573069475,0.00023483,63849.0,63848.0,0.07806]
[1724573070377,0.00423483,63849.0,63848.0,0.07806]
[1724573072675,0.00023483,63849.0,63848.0,0.08206]
[1724573074678,0.07824684,63849.0,63848.0,0.08206]
[1724573075390,0.00023483,63849.0,63848.0,0.08206]
[1724573075576,0.07837723,63849.0,63848.0,0.08206]
[1724573075882,0.08037723,63849.0,63848.0,0.08206]
[1724573076074,0.00223483,63849.0,63848.0,0.08206]
[1724573076882,0.00223483,63849.0,63848.0,0.07806]
[1724573077087,0.00223483,63849.0,63848.0,0.08006]
[1724573077385,0.00023483,63849.0,63848.0,0.08206]
[1724573078090,0.07837723,63849.0,63848.0,0.08206]
[1724573079284,0.00023483,63849.0,63848.0,0.08206]
[1724573079496,0.07842828,63849.0,63848.0,0.44286]
[1724573079685,0.07842828,63849.0,63848.0,0.08206]
[1724573079879,0.00023483,63849.0,63848.0,0.08206]
[1724573080188,0.07842828,63849.0,63848.0,0.08206]
[1724573080381,0.00023483,63849.0,63848.0,0.08206]
[1724573082508,0.439056,63860.0,63854.0,0.078262]
[1724573082509,0.07819584,63855.0,63854.0,0.078262]
[1724573082691,0.07899584,63860.0,63854.0,0.3608]
[1724573082884,0.06255049,63857.0,63855.0,0.06255378]
[1724573083184,0.06255049,63857.0,63854.0,0.3608]
[1724573083185,0.0956,63862.0,63861.0,0.078254]
[1724573084593,0.1076,63862.0,63861.0,0.079254]
[1724573085184,0.0024,63863.0,63862.0,0.078253]
[1724573087188,0.0194,63863.0,63862.0,0.080253]
[1724573088194,0.0194,63863.0,63862.0,0.158506]
[1724573088195,0.08185443,63863.0,63862.0,0.158506]
[1724573088394,0.0194,63863.0,63862.0,0.158506]
[1724573088590,0.0194,63863.0,63862.0,0.22105978]
[1724573088784,0.0194,63863.0,63862.0,0.080253]
[1724573089086,0.0194,63863.0,63862.0,0.61241828]
[1724573089684,0.0194,63863.0,63862.0,0.550013]
[1724573089887,0.00023483,63868.0,63867.0,0.078246]
[1724573090107,0.04683835,63875.0,63867.0,0.659046]
[1724573090294,0.04683835,63876.0,63874.0,0.3608]
[1724573090488,0.04683835,63877.0,63876.0,0.078235]
[1724573090891,0.06245443,63880.0,63877.0,0.078234]
[1724573091091,0.04674936,63878.0,63877.0,0.078234]
[1724573091293,0.06245443,63881.0,63877.0,0.078234]
[1724573092394,0.06245443,63881.0,63877.0,0.079234]
[1724573092395,0.06245443,63880.0,63877.0,0.079234]
[1724573092687,0.06245443,63879.0,63877.0,0.079234]
[1724573092993,0.06245443,63879.0,63877.0,0.001]
[1724573092994,0.4069,63878.0,63877.0,0.001]
[1724573093303,0.078239,63873.0,63872.0,0.00023483]
[1724573093693,0.14054584,63873.0,63872.0,0.00023483]
[1724573093898,0.23474584,63873.0,63872.0,0.07847483]
[1724573094086,0.172439,63873.0,63872.0,0.07847483]
[1724573094283,0.0492,63873.0,63872.0,0.07847483]
[1724573095291,0.0492,63873.0,63872.0,0.07947483]
[1724573095499,0.09592517,63873.0,63872.0,0.07947483]
[1724573096092,0.0552,63873.0,63872.0,0.08047483]
[1724573097597,0.3668,63873.0,63872.0,0.08047483]
[1724573097897,0.006,63873.0,63872.0,0.08047483]
[1724573103194,0.084239,63873.0,63872.0,0.08047483]
[1724573103607,0.05272331,63873.0,63872.0,0.08047483]
[1724573103799,0.006,63873.0,63872.0,0.08047483]
[1724573104100,0.05272359,63873.0,63872.0,0.08047483]
[1724573105604,0.00621,63873.0,63872.0,0.08047483]
[1724573107501,0.05293359,63873.0,63872.0,0.08047483]
[1724573108004,0.00621,63873.0,63872.0,0.08047483]
[1724573109202,0.05293359,63873.0,63872.0,0.08047483]
[1724573109795,0.00621,63873.0,63872.0,0.44127483]
[1724573110906,0.05293359,63873.0,63872.0,0.44127483]
[1724573112207,0.00621,63873.0,63872.0,0.44127483]
[1724573114404,0.00621,63873.0,63872.0,0.48804492]
[1724573116210,0.00621,63873.0,63872.0,0.44127483]
[1724573116600,0.05307956,63873.0,63872.0,0.91095483]
[1724573116815,0.05307956,63873.0,63872.0,1.38919483]
[1724573116816,0.00176969,63873.0,63872.0,1.38919483]
[1724573117009,0.00176969,63873.0,63872.0,1.60919483]
[1724573118107,0.00021,63873.0,63872.0,1.60719483]
[1724573118411,0.01121,63873.0,63872.0,1.60919483]
[1724573118714,0.01121,63873.0,63872.0,1.20919483]
[1724573118916,0.01121,63873.0,63872.0,0.44127483]
[1724573119212,0.05807804,63873.0,63872.0,0.44127483]
[1724573119507,0.01121,63873.0,63872.0,0.44127483]
[1724573120301,0.01121,63873.0,63872.0,0.66127483]
[1724573120806,0.01121,63873.0,63872.0,1.60919483]
[1724573121208,0.01121,63873.0,63872.0,1.53095483]
[1724573121407,0.01121,63873.0,63872.0,1.84482337]
[1724573122111,0.01121,63873.0,63872.0,1.58055483]
[1724573123121,0.01121,63873.0,63872.0,1.65879483]
[1724573124315,0.01121,63873.0,63872.0,1.84487383]
[1724573124915,0.01121,63873.0,63872.0,2.20567383]
[1724573125427,0.04686804,63881.0,63880.0,0.07823]
[1724573125719,0.04686804,63883.0,63880.0,0.5808]
[1724573125926,0.04686804,63883.0,63882.0,0.078228]
[1724573126123,0.04707649,63885.0,63884.0,0.078226]
[1724573126326,0.00023483,63885.0,63884.0,0.078226]
[1724573127218,0.00023483,63885.0,63884.0,0.156452]
[1724573127418,0.00023483,63885.0,63884.0,0.21888462]
[1724573127729,0.00023483,63885.0,63884.0,1.027052]
[1724573127924,0.00123483,63885.0,63884.0,1.027052]
[1724573129015,0.00123483,63885.0,63884.0,1.028052]
[1724573129318,0.00123483,63885.0,63884.0,1.09043055]
[1724573129513,0.00123483,63885.0,63884.0,1.028052]
[1724573130117,0.00123483,63885.0,63884.0,1.090411]
[1724573130827,0.00123483,63885.0,63884.0,1.451211]
[1724573131016,0.00123483,63885.0,63884.0,1.388852]
[1724573131211,0.00123483,63885.0,63884.0,1.437852]
[1724573131415,0.00123483,63885.0,63884.0,1.50019052]
[1724573131812,0.00123483,63885.0,63884.0,1.437852]
[1724573132219,0.00123483,63885.0,63884.0,1.605487]
[1724573133016,0.00123483,63885.0,63884.0,1.650587]
[1724573133222,0.00123483,63885.0,63884.0,1.71290253]
[1724573133528,0.00123483,63885.0,63884.0,1.70897653]
[1724573133720,0.00123483,63885.0,63884.0,1.324887]
[1724573133923,0.00123483,63885.0,63884.0,1.605487]
[1724573134217,0.00123483,63885.0,63884.0,1.724767]
[1724573134814,0.00123483,63885.0,63884.0,1.646541]
[1724573135218,0.00123483,63885.0,63884.0,1.724767]
[1724573135815,8.3e-07,63885.0,63884.0,1.724767]
[1724573136420,0.0469,63898.0,63897.0,0.07821]
[1724573136637,0.0469,63898.0,63897.0,0.43901]
[1724573138221,0.0479,63898.0,63897.0,0.44101]
[1724573139423,0.09474166,63898.0,63897.0,0.44101]
[1724573139925,0.09474166,63898.0,63897.0,0.08021]
[1724573141329,0.0479,63898.0,63897.0,0.08021]
[1724573142234,0.0479,63898.0,63897.0,0.08]
[1724573142631,0.09474166,63898.0,63897.0,0.08]
[1724573143336,0.0479,63898.0,63897.0,0.08]
[1724573144727,0.0479,63898.0,63897.0,0.079]
[1724573144934,0.0479,63898.0,63897.0,0.08]
[1724573146438,0.0469,63898.0,63897.0,0.08]
[1724573150342,0.0444,63898.0,63897.0,0.08]
[1724573150537,0.0444,63898.0,63897.0,0.4408]
[1724573150840,0.0444,63898.0,63897.0,0.08]
[1724573151238,0.4052,63898.0,63897.0,0.08]
[1724573151838,0.46761965,63898.0,63897.0,0.08]
[1724573152234,0.4052,63898.0,63897.0,0.08]
[1724573152454,0.0444,63898.0,63897.0,0.08]
[1724573152739,0.0444,63898.0,63897.0,0.4408]
[1724573152948,0.09122382,63898.0,63897.0,0.4408]
[1724573153140,0.0444,63898.0,63897.0,0.4408]
[1724573154145,0.10683721,63898.0,63897.0,0.4408]
[1724573155043,0.0444,63898.0,63897.0,0.4408]
[1724573155240,0.0444,63898.0,63897.0,0.48753009]
[1724573156648,0.0444,63898.0,63897.0,0.4408]
[1724573159256,0.0444,63898.0,63897.0,0.4876978]
[1724573161445,0.0444,63898.0,63897.0,0.1268978]
[1724573164741,0.0444,63898.0,63897.0,0.08]
[1724573164942,0.12259584,63898.0,63897.0,0.12690085]
[1724573166039,0.0444,63898.0,63897.0,0.12690085]
[1724573166550,0.0444,63898.0,63897.0,0.12690151]
[1724573167254,0.0444,63898.0,63897.0,0.08]
[1724573167552,0.0444,63898.0,63897.0,0.12690185]
[1724573168250,0.0444,63898.0,63897.0,0.08]
[1724573169039,0.07819584,63899.0,63897.0,0.002]
[1724573169244,0.07819584,63899.0,63898.0,0.12511088]
[1724573169746,0.07819584,63899.0,63898.0,0.078208]
[1724573169939,0.07819584,63900.0,63899.0,0.078207]
[1724573170249,0.36103483,63904.0,63900.0,0.078206]
[1724573170250,0.07819584,63901.0,63900.0,0.078206]
[1724573170438,0.07819584,63901.0,63900.0,0.12510682]
[1724573170638,0.07819584,63901.0,63900.0,0.078206]
[1724573170949,0.07819584,63902.0,63901.0,0.078205]
[1724573171153,0.36103483,63904.0,63901.0,0.078205]
[1724573171154,0.07819584,63903.0,63902.0,0.078204]
[1724573171341,0.07819584,63903.0,63902.0,0.12510363]
[1724573171659,0.00023483,63904.0,63903.0,0.078202]
[1724573172847,0.00023483,63904.0,63903.0,0.439002]
[1724573173740,0.00023483,63904.0,63903.0,0.440002]
[1724573174052,0.00023483,63904.0,63903.0,0.441002]
[1724573174357,0.06274048,63904.0,63903.0,0.441002]
[1724573175646,0.06274048,63904.0,63903.0,0.080202]
[1724573175849,0.06274048,63904.0,63903.0,0.441002]
[1724573176153,0.00023483,63904.0,63903.0,0.440792]
[1724573177957,0.00023483,63904.0,63903.0,0.50309878]
[1724573178360,0.0470825,63904.0,63903.0,0.58130078]
[1724573178561,0.0470825,63904.0,63903.0,0.518994]
[1724573178562,0.00023483,63904.0,63903.0,0.518994]
[1724573180165,0.00023483,63904.0,63903.0,0.637234]
[1724573180358,0.00023483,63904.0,63903.0,0.518994]
[1724573181952,0.00023483,63904.0,63903.0,0.158194]
[1724573182161,0.00023483,63904.0,63903.0,0.518994]
[1724573182459,0.00023483,63904.0,63903.0,0.22061451]
[1724573182663,0.00023483,63904.0,63903.0,0.58141451]
[1724573184461,0.00023483,63904.0,63903.0,0.518994]
[1724573185456,0.00023483,63904.0,63903.0,0.918994]
[1724573185673,0.00023483,63904.0,63903.0,1.55824606]
[1724573187064,0.00023483,63904.0,63903.0,1.55724606]
[1724573187362,0.00023483,63904.0,63903.0,1.55824606]
[1724573187562,0.00023483,63904.0,63903.0,1.67648606]
[1724573187764,0.00023483,63904.0,63903.0,1.67548606]
[1724573188165,0.00023483,63904.0,63903.0,1.67448606]
[1724573188665,8.3e-07,63904.0,63903.0,1.67448606]
[1724573191260,0.04684767,63918.0,63917.0,0.078185]
[1724573191466,0.04684767,63918.0,63917.0,0.438985]
[1724573191766,0.04684767,63919.0,63918.0,0.078184]
[1724573191960,0.04684767,63919.0,63917.0,0.3608]
[1724573191961,0.04684767,63921.0,63920.0,0.078181]
[1724573192892,0.00023483,63927.0,63920.0,1.12536785]
[1724573193091,0.00023483,63927.0,63926.0,0.438974]
[1724573193283,0.00023483,63927.0,63926.0,0.557214]
[1724573194067,0.00023483,63927.0,63926.0,0.438974]
[1724573194260,0.00023483,63927.0,63926.0,0.556454]
[1724573194464,0.00023483,63927.0,63926.0,0.557454]
[1724573194769,0.00023483,63927.0,63926.0,0.558454]
[1724573195068,0.00023483,63927.0,63926.0,0.440974]
[1724573195670,0.00023483,63927.0,63926.0,0.558454]
[1724573197075,0.00023483,63927.0,63926.0,0.557454]
[1724573197279,0.00023483,63927.0,63926.0,0.558454]
[1724573197777,0.00023483,63927.0,63926.0,0.557454]
[1724573198077,0.00023483,63927.0,63926.0,0.558454]
[1724573198469,0.00023483,63927.0,63926.0,0.73830325]
[1724573200177,0.00023483,63927.0,63926.0,0.73730325]
[1724573200381,0.00023483,63927.0,63926.0,0.74630325]
[1724573200679,0.00023483,63927.0,63926.0,0.75530325]
[1724573201673,0.00023483,63927.0,63926.0,0.63782325]
[1724573201878,0.00023483,63927.0,63926.0,0.75530325]
[1724573209080,0.00023483,63927.0,63926.0,1.62458325]
[1724573209373,0.00023483,63927.0,63926.0,1.67131338]
[1724573209579,0.00023483,63927.0,63926.0,1.27131338]
[1724573209776,0.00023483,63927.0,63926.0,1.34948738]
[1724573209982,0.00023483,63927.0,63926.0,1.27131338]
[1724573210568,0.00036483,63927.0,63926.0,1.27131338]
[1724573211175,0.00036483,63927.0,63926.0,1.22458325]
[1724573213582,0.00036483,63927.0,63926.0,1.30275725]
[1724573213801,0.00036483,63927.0,63926.0,1.36510983]
[1724573213985,0.00036483,63927.0,63926.0,1.30275725]
[1724573215187,0.00036483,63927.0,63926.0,1.28689021]
[1724573215386,0.00036483,63927.0,63926.0,1.30275725]
[1724573217479,0.00036483,63927.0,63926.0,0.83347725]
[1724573218589,0.00036483,63927.0,63926.0,0.91148926]
[1724573219484,0.00036483,63927.0,63926.0,0.93574895]
[1724573219879,0.00036483,63927.0,63926.0,0.93575147]
[1724573220282,0.00036483,63927.0,63926.0,0.85757747]
[1724573220585,0.00036483,63927.0,63926.0,0.93575147]
[1724573221382,0.00036483,63927.0,63926.0,0.85757747]
[1724573221590,0.00036483,63927.0,63926.0,0.93575147]
[1724573222082,0.00036483,63927.0,63926.0,1.02936588]
[1724573222286,0.00036483,63927.0,63926.0,0.93575147]
[1724573222485,0.0967,63934.0,63933.0,0.078166]
[1724573222791,0.0967,63934.0,63933.0,0.658966]
[1724573222981,0.0967,63934.0,63933.0,0.76155025]
[1724573223383,0.0967,63934.0,63933.0,0.92831645]
[1724573223587,0.06250565,63940.0,63939.0,0.156316]
[1724573223880,0.0462,63946.0,63939.0,0.156316]
[1724573223881,0.06250565,63942.0,63941.0,0.078156]
[1724573224083,0.047,63947.0,63941.0,0.078156]
[1724573224084,0.092,63947.0,63941.0,0.40074025]
[1724573224290,0.092,63947.0,63946.0,0.43895]
[1724573224792,0.1382,63947.0,63946.0,0.43895]
[1724573225486,0.1382,63947.0,63946.0,0.43995]
[1724573226792,0.1382,63947.0,63946.0,0.50237286]
[1724573227187,0.0382,63947.0,63946.0,0.43995]
[1724573227492,0.0382,63947.0,63946.0,0.50232409]
[1724573227885,0.06246569,63954.0,63953.0,0.078141]
[1724573228083,0.43899584,63960.0,63953.0,0.22]
[1724573228297,0.06237371,63955.0,63953.0,0.22]
[1724573228487,0.06237371,63956.0,63955.0,0.078139]
[1724573228918,0.06237371,63961.0,63960.0,0.078133]
[1724573229203,0.06237371,63964.0,63960.0,0.22]
[1724573229390,0.36168,63966.0,63964.0,0.078128]
[1724573229391,0.06237371,63965.0,63964.0,0.078128]
[1724573230179,0.06237371,63965.0,63960.0,0.22]
[1724573230180,0.3608,63966.0,63965.0,0.078126]
[1724573231300,1.2298,63966.0,63965.0,0.078126]
[1724573231691,1.2048,63966.0,63965.0,0.078126]
[1724573232388,1.2048,63966.0,63965.0,0.080126]
[1724573233698,0.8048,63966.0,63965.0,0.080126]
[1724573233897,1.2048,63966.0,63965.0,0.080126]
[1724573234818,1.2048,63966.0,63960.0,0.078132]
[1724573234992,1.2048,63966.0,63961.0,0.078131]
[1724573234993,0.078129,63964.0,63961.0,0.078131]
[1724573236002,0.078129,63964.0,63960.0,0.002]
[1724573236503,0.078129,63964.0,63961.0,0.001]
[1724573236901,0.078129,63964.0,63963.0,0.078129]
[1724573238199,0.079129,63964.0,63963.0,0.078129]
[1724573238603,0.079129,63964.0,63963.0,0.079129]
[1724573238812,0.079129,63964.0,63963.0,0.080129]
[1724573240193,0.001,63964.0,63963.0,0.080129]
[1724573242503,0.3358,63966.0,63965.0,0.078126]
[1724573243396,0.8048,63966.0,63965.0,0.078126]
[1724573243701,0.8048,63966.0,63965.0,0.079126]
[1724573243702,0.86717371,63966.0,63965.0,0.079126]
[1724573244207,0.39817371,63966.0,63965.0,0.079126]
[1724573244608,0.3358,63966.0,63965.0,0.079126]
[1724573244796,0.39917371,63966.0,63965.0,0.080126]
[1724573245201,0.3368,63966.0,63965.0,0.080126]
[1724573245701,0.001,63966.0,63965.0,0.440926]
[1724573245900,0.001,63966.0,63965.0,0.439926]
[1724573246108,0.001,63966.0,63965.0,0.440926]
[1724573246301,0.0466,63967.0,63966.0,0.078125]
[1724573246898,0.06237371,63974.0,63966.0,0.22]
[1724573247105,0.06237371,63975.0,63974.0,0.078115]
[1724573247303,0.10997371,63976.0,63975.0,0.078114]
[1724573247509,0.10985305,63976.0,63975.0,0.078114]
[1724573247810,0.0476,63976.0,63975.0,0.078114]
[1724573248295,0.51652,63976.0,63975.0,0.078114]
[1724573248498,0.91652,63976.0,63975.0,0.079114]
[1724573248711,0.91752,63976.0,63975.0,0.079114]
[1724573250300,0.91752,63976.0,63975.0,0.080114]
[1724573251610,0.51752,63976.0,63975.0,0.080114]
[1724573251818,0.001,63976.0,63975.0,0.080114]
[1724573252228,0.001,63976.0,63975.0,0.440914]
[1724573252229,0.06330258,63976.0,63975.0,0.440914]
[1724573252422,0.001,63976.0,63975.0,0.440914]
[1724573257905,0.06230258,63985.0,63983.0,0.078104]
[1724573258307,0.06230258,63985.0,63984.0,0.078103]
[1724573259110,0.06330258,63985.0,63984.0,0.078103]
[1724573259908,0.06330258,63985.0,63984.0,0.079103]
[1724573260425,0.001,63985.0,63984.0,0.079103]
[1724573261213,0.06230258,63986.0,63985.0,0.078102]
[1724573262515,0.06230258,63986.0,63985.0,0.080102]
[1724573262516,0.06330258,63986.0,63985.0,0.080102]
[1724573263400,0.001,63986.0,63985.0,0.080102]
[1724573264313,0.06330258,63986.0,63985.0,0.080102]
[1724573265211,0.001,63986.0,63985.0,0.080102]
[1724573266131,0.001,63986.0,63985.0,0.002]
[1724573266414,0.079101,63986.0,63985.0,0.002]
[1724573269230,0.15729684,63986.0,63985.0,0.002]
[1724573269515,0.079101,63986.0,63985.0,0.002]
[1724573270014,0.15695022,63986.0,63985.0,0.002]
[1724573270601,0.18227086,63986.0,63985.0,0.002]
[1724573270832,0.10442164,63986.0,63985.0,0.002]
[1724573271024,0.078108,63981.0,63978.0,0.07811]
[1724573272015,0.078108,63980.0,63978.0,0.07811]
[1724573272315,0.078108,63980.0,63978.0,0.07911]
[1724573272513,0.0959,63979.0,63978.0,0.08011]
[1724573274216,0.0959,63979.0,63978.0,0.08711]
[1724573274616,0.0959,63979.0,63978.0,0.08611]
[1724573275016,0.0959,63979.0,63978.0,0.09311]
[1724573275203,0.0959,63979.0,63978.0,0.08511]
[1724573275510,0.0959,63979.0,63978.0,0.09111]
[1724573275811,0.0959,63979.0,63978.0,0.07811]
[1724573276115,0.0959,63979.0,63978.0,0.08711]
[1724573277616,0.1737673,63979.0,63978.0,0.08211]
[1724573278215,0.1737673,63979.0,63978.0,0.08011]
[1724573278516,0.1737673,63979.0,63978.0,0.07811]
[1724573278719,0.1757673,63979.0,63978.0,0.07811]
[1724573279118,0.1737673,63979.0,63978.0,0.07811]
[1724573279324,0.1757673,63979.0,63978.0,0.07811]
[1724573279517,0.0979,63979.0,63978.0,0.07811]
[1724573280220,0.12322161,63979.0,63978.0,0.07811]
[1724573283526,0.96682,63979.0,63977.0,0.04683761]
[1724573283734,0.078115,63975.0,63973.0,0.04683761]
[1724573284022,0.11893775,63974.0,63968.0,0.00023463]
[1724573284216,0.078115,63975.0,63969.0,0.078121]
[1724573284217,0.07807261,63970.0,63969.0,0.078121]
[1724573284524,0.3608,63971.0,63969.0,0.078121]
[1724573285234,0.07803136,63970.0,63969.0,0.078121]
[1724573285528,0.02532617,63970.0,63969.0,0.094121]
[1724573286122,0.43972,63971.0,63969.0,0.091121]
[1724573286328,0.0253263,63970.0,63969.0,0.091121]
[1724573286538,0.1034463,63970.0,63969.0,0.013]
[1724573287035,0.66602071,63970.0,63969.0,0.013]
[1724573287211,0.5724063,63970.0,63969.0,0.013]
[1724573287629,0.1034463,63970.0,63969.0,0.013]
[1724573287926,0.1034463,63970.0,63969.0,0.016]
[1724573288221,0.1034463,63970.0,63969.0,0.008]
[1724573288426,0.1044463,63970.0,63969.0,0.002]
[1724573288637,0.19806071,63970.0,63969.0,0.002]
[1724573289015,0.1980141,63970.0,63969.0,0.002]
[1724573289219,0.19801646,63970.0,63969.0,0.002]
[1724573290219,0.078122,63969.0,63968.0,0.00023463]
[1724573290442,0.078135,63958.0,63956.0,0.078137]
[1724573290728,0.93447846,63969.0,63956.0,0.078137]
[1724573290729,0.42316225,63957.0,63956.0,0.078137]
[1724573290922,0.3608,63957.0,63956.0,0.078137]
[1724573292141,0.3608,63957.0,63956.0,0.087137]
[1724573292528,0.3608,63957.0,63956.0,0.078137]
[1724573292723,0.3608,63957.0,63956.0,0.096137]
[1724573293337,0.438936,63957.0,63956.0,0.018]
[1724573296731,0.50117286,63957.0,63956.0,0.018]
[1724573298231,0.438936,63957.0,63956.0,0.018]
[1724573299927,0.438936,63957.0,63956.0,0.096137]
[1724573306836,0.3608,63957.0,63956.0,0.096137]
[1724573311240,0.42303686,63957.0,63956.0,0.096137]
[1724573312236,0.3608,63957.0,63956.0,0.096137]
[1724573314349,0.093543,63965.0,63957.0,0.078136]
[1724573314545,0.06237619,63966.0,63965.0,0.078126]
[1724573314733,0.06237619,63968.0,63966.0,0.078125]
[1724573314933,0.06237619,63968.0,63966.0,0.04678415]
[1724573315239,0.06237619,63969.0,63968.0,0.078123]
[1724573316266,0.469,63969.0,63964.0,0.3608]
[1724573316557,0.078126,63966.0,63964.0,0.3608]
[1724573316737,0.12777238,63965.0,63964.0,0.3608]
[1724573316932,0.0498,63965.0,63964.0,0.3608]
[1724573317136,0.12777238,63965.0,63964.0,0.3608]
[1724573318149,0.20589838,63965.0,63964.0,0.3608]
[1724573318350,0.596926,63965.0,63964.0,0.3608]
[1724573318650,0.62225481,63965.0,63964.0,0.3608]
[1724573319845,0.15325481,63965.0,63964.0,0.3608]
[1724573320040,0.62225481,63965.0,63964.0,0.3608]
[1724573320751,0.15325481,63965.0,63964.0,0.3608]
[1724573321950,0.15325476,63965.0,63964.0,0.3608]
[1724573322646,0.07512876,63965.0,63964.0,0.3608]
[1724573322850,0.07512876,63965.0,63964.0,0.438928]
[1724573322851,0.07798006,63965.0,63964.0,0.438928]
[1724573323068,0.07798006,63967.0,63964.0,0.3608]
[1724573323243,0.07798006,63968.0,63967.0,0.078124]
[1724573324256,0.07798006,63969.0,63968.0,0.078123]
[1724573324754,0.06236412,63969.0,63964.0,0.3608]
[1724573325051,0.06236412,63969.0,63968.0,0.078123]
[1724573325253,0.06236412,63969.0,63964.0,0.3608]
[1724573325254,0.06236412,63970.0,63969.0,0.078122]
[1724573326065,0.06236412,63970.0,63967.0,0.3608]
[1724573326066,0.07798006,63974.0,63970.0,0.07812]
[1724573326559,0.049,63975.0,63970.0,0.07812]
[1724573326560,0.07798006,63973.0,63970.0,0.07812]
[1724573326749,0.07798006,63973.0,63971.0,0.078119]
[1724573326956,0.12698006,63975.0,63971.0,0.078119]
[1724573327251,0.07798006,63973.0,63971.0,0.078119]
[1724573327654,0.049,63975.0,63971.0,0.078119]
[1724573327655,0.07798006,63974.0,63971.0,0.078119]
[1724573328351,0.07898006,63974.0,63971.0,0.078119]
[1724573328860,0.07798006,63973.0,63971.0,0.078119]
[1724573329157,0.17568006,63973.0,63971.0,0.079119]
[1724573330649,0.17668006,63973.0,63971.0,0.079119]
[1724573330955,0.0987,63973.0,63972.0,0.078118]
[1724573332143,0.0977,63973.0,63972.0,0.078118]
[1724573332345,0.0987,63973.0,63972.0,0.079118]
[1724573332759,0.0987,63973.0,63972.0,0.080118]
[1724573333083,0.078123,63968.0,63964.0,0.3608]
[1724573333860,0.15605374,63968.0,63964.0,0.3608]
[1724573334943,0.15605374,63968.0,63965.0,0.078126]
[1724573336161,0.07793074,63967.0,63965.0,0.078126]
[1724573336345,0.078123,63968.0,63965.0,0.078126]
[1724573336346,0.15605374,63968.0,63965.0,0.078126]
[1724573336947,0.15705374,63968.0,63965.0,0.078126]
[1724573337155,0.07793074,63967.0,63965.0,0.078126]
[1724573337553,0.078125,63966.0,63965.0,0.078126]
[1724573337960,0.090625,63966.0,63965.0,0.078126]
[1724573338757,0.16855574,63966.0,63965.0,0.078126]
[1724573339963,0.16955574,63966.0,63965.0,0.078126]
[1724573340257,0.11695293,63966.0,63965.0,0.078126]
[1724573340459,0.091625,63966.0,63965.0,0.078126]
[1724573340665,0.16961659,63966.0,63965.0,0.078126]
[1724573340851,0.16961592,63966.0,63965.0,0.078126]
[1724573341054,0.16961706,63966.0,63965.0,0.078126]
[1724573341459,0.12945284,63966.0,63965.0,0.078126]
[1724573341971,0.05132784,63966.0,63965.0,0.078126]
[1724573342179,0.10400435,63966.0,63965.0,0.078126]
[1724573342363,0.026,63966.0,63965.0,0.078126]
[1724573342556,0.10400435,63966.0,63965.0,0.078126]
[1724573343564,0.026,63966.0,63965.0,0.078126]
[1724573344058,0.10400435,63966.0,63965.0,0.078126]
[1724573344262,0.10403466,63966.0,63965.0,0.078126]
[1724573344459,0.026,63966.0,63965.0,0.078126]
[1724573345460,0.10403927,63966.0,63965.0,0.078126]
[1724573345665,0.10404026,63966.0,63965.0,0.078126]
[1724573346068,0.10404071,63966.0,63965.0,0.078126]
[1724573346267,0.026,63966.0,63965.0,0.078126]
[1724573346664,0.05132659,63966.0,63965.0,0.078126]
[1724573346969,0.026,63966.0,63965.0,0.078126]
[1724573347766,0.03051,63966.0,63965.0,0.078126]
[1724573347969,0.09294284,63966.0,63965.0,0.078126]
[1724573348162,0.03051,63966.0,63965.0,0.078126]
[1724573348561,0.03051,63966.0,63965.0,0.168126]
[1724573349458,0.03051,63966.0,63965.0,0.21494919]
[1724573350489,0.03051,63966.0,63965.0,0.12494919]
[1724573350767,0.03051,63966.0,63965.0,0.078126]
[1724573354072,0.1085581,63966.0,63965.0,0.438926]
[1724573354396,0.1085581,63966.0,63962.0,0.00023444]
[1724573354397,0.078129,63963.0,63962.0,0.00023444]
[1724573354598,0.5169976,63963.0,63962.0,0.0470756]
[1724573354875,0.46425933,63963.0,63962.0,0.00023444]
[1724573356074,0.68425933,63963.0,63962.0,0.00223444]
[1724573357073,0.68425933,63963.0,63962.0,0.00423444]
[1724573359678,0.68425968,63963.0,63962.0,0.00423444]
[1724573360281,0.77780268,63963.0,63962.0,0.00423444]
[1724573360674,0.57030268,63963.0,63962.0,0.00423444]
[1724573360874,0.20950268,63963.0,63962.0,0.00423444]
[1724573362977,0.11595968,63963.0,63962.0,0.00423444]
[1724573363377,0.16864707,63963.0,63962.0,0.00423444]
[1724573363582,0.090629,63963.0,63962.0,0.00423444]
[1724573363787,0.0125,63963.0,63962.0,0.08236444]
[1724573366971,0.07490825,63963.0,63962.0,0.08236444]
[1724573367678,0.0125,63963.0,63962.0,0.08236444]
[1724573367879,0.0125,63963.0,63962.0,0.19003853]
[1724573368081,0.05930138,63963.0,63962.0,0.19003853]
[1724573368380,0.0125,63963.0,63962.0,0.19005881]
[1724573369187,0.0125,63963.0,63962.0,0.14475881]
[1724573369383,0.0125,63963.0,63962.0,0.08236444]
[1724573369889,0.0125,63963.0,63962.0,0.12916106]
[1724573370182,0.025,63963.0,63962.0,0.12916106]
[1724573370383,0.025,63963.0,63962.0,0.08236444]
[1724573372384,0.025,63963.0,63962.0,0.14475881]
[1724573373191,0.025,63963.0,63962.0,0.14474956]
[1724573374584,0.025,63963.0,63962.0,0.08236444]
[1724573375094,0.025,63963.0,63962.0,0.14474956]
[1724573375487,0.025,63963.0,63962.0,0.08236444]
[1724573376995,0.025,63963.0,63962.0,0.1291455]
[1724573377387,0.025,63963.0,63962.0,0.08236444]
[1724573379291,0.025,63963.0,63962.0,0.1291455]
[1724573379495,0.02951,63963.0,63962.0,0.08236444]
[1724573383499,0.02951,63963.0,63962.0,0.12756444]
[1724573384993,0.02951,63963.0,63962.0,0.1743455]
[1724573385590,0.02951,63963.0,63962.0,0.1291455]
[1724573386600,0.07629106,63963.0,63962.0,0.08236444]
[1724573388198,0.02951,63963.0,63962.0,0.44316444]
[1724573388716,0.07630758,63963.0,63962.0,0.44316444]
[1724573389198,0.02951,63963.0,63962.0,0.44316444]
[1724573390303,0.09191825,63963.0,63962.0,0.44316444]